{"text_format":"3","workbook":"xlsx","n_sheets":1,"sheets":["Template for budget & accounts"],"not_rendered":{"images":1},"read":"whole","date_system":"1900"}

{"sheet":"Template for budget & accounts","index":0,"n_rows":79,"n_cols":6,"rows_kept":79,"merged":[[2,2,2,5],[4,2,4,5],[5,2,5,5],[6,2,6,5],[7,2,7,5],[9,2,9,5],[10,3,10,5],[11,3,11,5],[14,3,14,5],[15,3,15,5],[16,3,16,5],[17,3,17,5],[18,3,18,5],[19,2,19,5],[20,2,20,5],[21,3,21,5],[22,3,22,5],[23,3,23,5],[24,3,24,5],[26,2,26,5],[27,2,27,5],[28,2,28,5],[42,2,42,5],[43,2,43,5],[44,2,44,5],[45,2,45,5],[46,2,46,5],[47,2,47,5],[61,2,61,5],[62,2,62,5],[63,2,63,5],[67,2,67,5],[68,2,68,5],[70,2,70,5],[71,2,71,5],[73,4,73,5],[74,4,74,5],[77,4,77,5],[79,2,79,5]]}
[]
[]
[null,null,"OVERBLIK OVER  PROJEKTFINANSIERING"]
[]
[null,null,"Denne skabelon kan anvendes til at lave et projektbudget og til at lave et afsluttende projektregnskab."]
[null,null,"VEJLEDNING:"]
[null,null,"De gule felter indeholder hjælpetekster. For at vise eller skjule felter: Tryk på ➕/➖ i den grå margin til venstre i regnearket eller tryk på 1 or 2 i det øverste venstre hjørne. "]
[null,null,"::: HUSK AT SKJULE ALLE GULE FELTER, FØR DU PRINTER ELLER LAVER EN PDF :::"]
[]
[null,null,"VÆLG PASSENDE OVERSKRIFT:"]
[null,null,"PROJEKTBUDGET","Bilag til en Projektstøtte-ansøgning"]
[null,null,"PROJEKTREGNSKAB","Bilag til en slutrapport"]
[]
[]
[null,null,"Ansøger","[ansøgernavn]"]
[null,null,"Projekttitel","[projektnavn]"]
[null,null,"Ansøgningsnummer (kun i projektregnskab)"]
[null,null,"Projektperiode","[Fra DD/MM-ÅÅÅÅ til DD/MM-ÅÅÅÅ]"]
[]
[null,null,"VALUTA:"]
[null,null,"Vælg en valutakode. Brug kun én valuta. Al støtte fra fonden er i danske kroner (DKK). Hvis du ikke vælger DKK, skal du angive vekselkursen mellem DKK og den valgte valuta.\n"]
[]
[null,null,"Valuta","[valutakode]"]
[null,null,"Vekselkurs","1 [valutakode] = [] DKK"]
[null,null,"Dato","[DD/MM-ÅÅÅÅ]"]
[]
[null,null,"INDTÆGTER:"]
[null,null,"PROJEKTBUDGET OG PROJEKTREGNSKAB: Angiv alle indtægtskilder enkeltvis og giv detaljeret information om alle andre nordiske, nationale og lokale støtteprogrammer, egenfinansiering, in-kind ressourcer og andre indtægter til det ansøgte projekt. Tilføj linjer, hvis det er nødvendigt."]
[null,null,"PROJEKTREGNSKAB: Sammenlæg alle udbetalinger af Projektstøtte (hvis der mere end én), så det fulde støttebeløb fra Nordisk Kulturfond er angivet."]
[]
[null,null,"INDTÆGTER","Budget","(Kun regnskab) \nRealiseret","(Kun regnskab) \nAfvigelse"]
[null,null,"Nordic Culture Fund",null,null,{"$f":"+E32-D32","v":0}]
[{"$nulls":5},{"$f":"+E33-D33","v":0}]
[{"$nulls":5},{"$f":"+E34-D34","v":0}]
[{"$nulls":5},0]
[{"$nulls":5},0]
[{"$nulls":5},0]
[{"$nulls":5},0]
[{"$nulls":5},0]
[{"$nulls":5},0]
[{"$nulls":5},0]
[null,null,"INDTÆGTER I ALT",{"$f":"SUM(D32:D41)","v":0},{"$f":"SUM(E32:E41)","v":0},{"$f":"+E42-D42","v":0}]
[]
[null,null,"UDGIFTER:"]
[null,null,"PROJEKTBUDGET AND PROJEKTREGNSKAB: Angiv alle udgiftsposter enkeltvis og giv detaljeret information om transport, kommunikation, honorarer til kunstnere og deltagere osv. Tilføj linjer, hvis det er nødvendigt."]
[null,null,"PROJEKTREGNSKAB: Angiv udgifter i et sammenligneligt format ift. det godkendte budget."]
[null,null,"PROJEKTREGNSKAB: Udgifterne må ikke være afrundede og skal stemme med beløb på kvitteringer og andet dokumentation.*"]
[null,null,"* DOKUMENTATION: Fonden beder ikke om dokumentation for alle udgifter i projektregnskabet. Men fonden udfører hvert år stikprøvekontroller på et antal støttede projekter. Det betyder, at du skal gemme alle kvitteringer, dokumentation og opgørelser i fem år efter, at projektet er afsluttet, uanset støttebeløbets størrelse."]
[]
[null,null,"UDGIFTER","Budget","(Kun regnskab) \nRealiseret ","(Kun regnskab) \nAfvigelse"]
[{"$nulls":5},{"$f":"+E51-D51","v":0}]
[{"$nulls":5},0]
[{"$nulls":5},0]
[{"$nulls":5},0]
[{"$nulls":5},0]
[{"$nulls":5},0]
[{"$nulls":5},0]
[{"$nulls":5},0]
[{"$nulls":5},0]
[null,null,"UDGIFTER I ALT",{"$f":"+SUM(D51:D59)","v":0},{"$f":"+SUM(E51:E59)","v":0},0]
[]
[null,null,"KOMMENTARER TIL RESULTAT:"]
[null,null,"PROJEKTBUDGET: Budgettet skal balancere, resultatet skal være 0."]
[null,null,"PROJEKTREGNSKAB: Kommentér, hvis resultatet ikke er 0."]
[]
[null,null,"RESULTAT",{"$f":"D42-D60","v":0},{"$f":"E42-E60","v":0},{"$f":"+E66-D66","v":0}]
[]
[null,null,"KOMMENTARER TIL RESULTAT (kun regnskab) "]
[null,null,"[Indsæt kommentar her. Udvid evt. felt]"]
[]
[null,null,"ERKLÆRING FRA STØTTEMODTAGER (kun regnskab)"]
[null,null,"Ved at underskrive dette erklærer jeg mig enig i følgende: Regnskabet herover er udarbejdet på grundlag af bogføring, kvitteringer og andre opgjorte poster, og giver efter vores mening et nøjagtigt og sandt billede af projektaktiviteterne. Vi er også af den opfattelse, at regnskabet er udarbejdet i overensstemmelse med retningslinjerne for projektet i henhold til tilskudsbrevet fra Nordisk Kulturfond."]
[]
[]
[null,null,"Navn på projektansvarlig",null,"[Sted og dato]"]
[null,null,"[Skriv navn på underskriveren med blokbogstaver her]"]
[]
[null,null,"Håndskreven underskrift"]
[null,null,"[En underskrift i hånden er obligatorisk]"]